Cogmind - Beta 13 *** ADVENTURER MODE // 2024.05.22 @ 14:21:33 Player: OrcaCora Result: Destroyed by D-53 Grenadier with Mini Grenade Launcher Performance ------------- Evolutions (0) 0 Regions Visited (2) 400 Robots Destroyed (20) 100 Value Destroyed (371) 371 Prototype IDs (2) 40 Alien Tech Used (0) 0 Bonus (0) 0 TOTAL SCORE: 911 Bonus ------- None Cogmind --------- Core Integrity 0/250 Matter 214/300 Energy 100/100 System Corruption 0% Temperature Cool (0) Movement Core (50) Location -10/Mines Parts ------- > --- POWER (1) -------- (None) > --- PROPULSION (2) --- (None) > --- UTILITY (2) ------ (None) > --- WEAPON (2) ------- (None) > --- INVENTORY (5) ---- Propulsion Shielding Propulsion Shielding Utility Shielding Particle Cannon Assault Rifle Peak State ------------ > --- POWER ------------ Ion Engine > --- PROPULSION ------- Aluminum Leg Aluminum Leg > --- UTILITY ---------- Heat Sink Large Storage Unit > --- WEAPON ----------- Particle Cannon Particle Cannon > --- INVENTORY -------- Light Ion Engine Light Ion Engine Light Treads Light Treads Armored Wheel Armored Wheel Armored Wheel Armored Wheel Particle Cannon Particle Cannon Assault Rifle Light Assault Rifle Mini Grenade Launcher Mini Grenade Launcher [Rating: 11] Favorites ----------- Power Ion Engine Engine Ion Engine Propulsion Aluminum Leg Treads Light Treads Leg Aluminum Leg Utility Heat Sink Device Heat Sink Storage Large Storage Unit Protection Light Armor Plating Weapon Particle Cannon Energy Gun Small Laser Energy Cannon Particle Cannon Ballistic Gun Assault Rifle Launcher Mini Grenade Launcher Build | -11 -10 -10 ------- Run | Yrd Mat Min Slots Evolved . | . . . Power . | . . . Propulsion . | . . . Utility . | . . . Weapon . | . . . Parts Attached 19 | 6 13 . Power 1 | 1 . . Engine 1 | 1 . . Core . | . . . Reactor . | . . . Propulsion 5 | 2 3 . Treads 2 | . 2 . Leg 3 | 2 1 . Wheel . | . . . Hover . | . . . Flight . | . . . Utility 6 | 1 5 . Device 1 | . 1 . Storage 4 | 1 3 . Processor . | . . . Hackware . | . . . Protection 1 | . 1 . Artifact . | . . . Weapon 7 | 2 5 . Energy Gun 1 | 1 . . Energy Cannon 2 | . 2 . Ballistic Gun 3 | 1 2 . Ballistic Cannon . | . . . Launcher 1 | . 1 . Special Weapon . | . . . Impact Weapon . | . . . Slashing Weapon . | . . . Piercing Weapon . | . . . Special Melee Weapon . | . . . Unidentified Prototypes . | . . . Parts Lost 2 | . . 2 Power . | . . . Propulsion . | . . . Utility 1 | . . 1 Weapon 1 | . . 1 Highest Loss Streak 2 | . . 2 To Critical Strikes . | . . . Average Slot Usage (%) 97 | . 99 91 Engine 13 | . 14 12 Treads 9 | . 5 25 Leg 18 | . 22 . Device 9 | . 11 . Storage 15 | . 15 12 Protection 2 | . . 12 Energy Cannon 22 | . 24 12 Ballistic Gun 1 | . 1 . Launcher 2 | . . 12 Naked Turns 24 | . . 24 Heaviest Build 94 | 13 94 93 Greatest Support 40 | 20 40 40 Greatest Overweight (x) 4 | . 4 2 Average Overweight (x) 1 | . 1 1 Largest Inventory Capacity 25 | 8 25 25 Average Capacity 17 | 6 17 23 Most Carried 17 | 8 17 17 Average Carried 14 | 5 14 16 Final Capacity 25 | 8 25 5 Final Carried 17 | 8 17 5 Class Distribution -------------------- 100% | Mutant Dominant Class ---------------- Mutant | -10/Materials Mutant | -10/Mines Resources | -11 -10 -10 ----------- Run | Yrd Mat Min Matter Collected 436 | 266 136 34 Remotely . | . . . Salvage Created 726 | 54 620 52 Parts 42 | 3 37 2 Haulers Intercepted 2 | . 2 . Recyclers Shooed 1 | . . 1 Parts Field Recycled . | . . . Retrieved Matter . | . . . Parts Self-Destructed . | . . . Prevented . | . . . Kills | -11 -10 -10 ------- Run | Yrd Mat Min Combat Hostiles Destroyed 24 | . 9 15 Cannons 11 | . 9 2 AOE 13 | . . 13 Classes Destroyed 7 | 1 5 1 Tunneler 1 | . 1 . Hauler 2 | . 2 . Recycler 3 | 1 2 . Watcher 2 | . 2 . Swarmer 6 | . 3 3 Grunt 6 | . 6 . Assembled 12 | . . 12 Best Kill Streak 12 | 1 3 12 Combat Bots Only 12 | . 3 12 Max Kills in Single Turn 3 | 1 1 3 Gunslinging . | . . . Exploded 3 | . . 3 Melee . | . . . Uniques/NPCs Destroyed . | . . . Combat | -11 -10 -10 -------- Run | Yrd Mat Min Hostile Shots Fired 81 | . 40 41 Missed 23 | . 14 9 Damage Taken 903 | . 277 626 Core 253 | . 44 209 Absorbed by Shields . | . . . Ignored by Resistances 263 | . 83 180 Core Remaining (%) 100 | 100 . . Volleys Fired 56 | 2 44 10 Largest 2 | 2 2 2 Hottest 136 | 60 136 98 Shots Fired 104 | 4 84 16 Gun 16 | 4 12 . Cannon 78 | . 72 6 Launcher 10 | . . 10 Special . | . . . Kinetic 14 | 2 12 . Thermal 80 | 2 72 6 Explosive 10 | . . 10 Electromagnetic . | . . . Robot Hit Streak 11 | 2 11 7 Robot Miss Streak 2 | 1 2 1 Penetration Max . | . . . Secondary Targets . | . . . Shots Hit Robots 62 | 2 51 9 Core Hits 44 | 2 18 24 Critical Kills . | . . . Critical Parts Destroyed . | . . . Critical Strikes . | . . . Melee Attacks . | . . . Impact . | . . . Slashing . | . . . Piercing . | . . . Sneak Attacks . | . . . Combat Hostiles . | . . . Follow-up Attacks . | . . . Damage Inflicted 2072 | 23 1022 1027 Guns 85 | 23 62 . Cannons 1042 | . 960 82 Explosions 945 | . . 945 Melee . | . . . Ramming . | . . . Kinetic 73 | 11 62 . Thermal 1054 | 12 960 82 Explosive 945 | . . 945 Electromagnetic . | . . . Impact . | . . . Slashing . | . . . Piercing . | . . . Highest Corruption . | . . . Average Corruption . | . . . Corruption Purged . | . . . Corruption Blocked . | . . . Overload Shots . | . . . Overflow Damage 13 | . 11 2 Projectiles 12 | . 11 1 Explosions 1 | . . 1 Melee . | . . . Knockbacks . | . . . Impact . | . . . Kinetic . | . . . Secondary . | . . . Self-Inflicted Damage 119 | . . 119 Shots 4 | . . 4 Rammed . | . . . Targets Rammed . | . . . Kicked . | . . . Crushed . | . . . Highest Temperature 276 | . 276 225 Average Temperature 95 | . 90 123 Received Heat Transfer 120 | . 120 . Siege Activations . | . . . Robots Corrupted . | . . . Combat Hostiles . | . . . Parts Fried . | . . . Impact Corruptions . | . . . Robots Melted . | . . . Combat Hostiles . | . . . Parts Melted . | . . . Heat Transferred 1912 | 25 1739 148 Parts Sabotaged . | . . . Parts Stolen . | . . . Parts Stripped . | . . . Power Chain Reactions . | . . . Alert | -11 -10 -10 ------- Run | Yrd Mat Min Peak Influence 174 | 5 174 108 Initial 2 | . 2 . Average 35 | 1 35 43 Maximum Alert Level . | . . . Low Security (%) 100 | 100 100 100 Level 1 . | . . . Level 2 . | . . . Level 3 . | . . . Level 4 . | . . . Level 5 . | . . . High Security . | . . . Max Security . | . . . Squads Dispatched 1 | . 1 . Investigation 1 | . 1 . Extermination . | . . . Reinforcement . | . . . Assault . | . . . Garrison . | . . . Intercept . | . . . Searches Triggered . | . . . Construction Impeded . | . . . Haulers Reinforced . | . . . Active Scanning Responses . | . . . Cargo Convoy Interrupts . | . . . Stealth | -11 -10 -10 --------- Run | Yrd Mat Min Distress Signals . | . . . Communications Jammed . | . . . Distress Signals . | . . . Times Spotted 33 | . 15 18 Peak Tracking Total 8 | . 3 8 Tactical Retreats . | . . . Traps | -11 -10 -10 ------- Run | Yrd Mat Min Traps Triggered 2 | . 2 . Indirectly . | . . . Trap Hack Attempts . | . . . Triggered . | . . . Disarmed . | . . . Reprogrammed . | . . . Reused . | . . . Traps Extracted . | . . . Installed . | . . . Triggered . | . . . Machines | -11 -10 -10 ---------- Run | Yrd Mat Min Machines Disabled 2 | . 2 . Max in Single Turn 1 | . 1 . Machines Repaired . | . . . Machines Dismantled . | . . . Machines Sabotaged . | . . . Overloaded Fab Kills . | . . . Hacking | -11 -10 -10 --------- Run | Yrd Mat Min Machines Accessed 7 | . 7 . Terminals 6 | . 6 . Fabricators . | . . . Repair Stations . | . . . Recycling Units 1 | . 1 . Scanalyzers . | . . . Garrison Access . | . . . Total Hacks 16 | . 16 . Successful 6 | . 6 . Failed 10 | . 10 . Catastrophic 2 | . 2 . Database Lockouts . | . . . Manual 2 | . 2 . Terminals 15 | . 15 . Fabricators . | . . . Repair Stations . | . . . Recycling Units 1 | . 1 . Scanalyzers . | . . . Garrison Access . | . . . Terminal Hacks 5 | . 5 . Prototype ID Bank 1 | . 1 . Branch Access Points 1 | . 1 . Emergency Access Points 1 | . 1 . Recall Investigation 1 | . 1 . Hauler Manifests 1 | . 1 . Fabricator Hacks . | . . . Repair Station Hacks . | . . . Recycling Unit Hacks 1 | . 1 . Retrieve Components 1 | . 1 . Scanalyzer . | . . . Garrison Access Hacks . | . . . Unauthorized Hacks . | . . . Terminals . | . . . Fabricators . | . . . Repair Stations . | . . . Recycling Units . | . . . Scanalyzers . | . . . Garrison Access . | . . . Data Cores Recovered . | . . . Used . | . . . Hacking Detections 6 | . 6 . Full Trace Events 1 | . 1 . Feedback Events . | . . . Feedback Blocked . | . . . Robot Schematics Acquired . | . . . Robots Built . | . . . Authchips . | . . . Time . | . . . Total Robot Build Rating . | . . . Part Schematics Acquired . | . . . Parts Built . | . . . Authchips . | . . . Time . | . . . Total Part Build Rating . | . . . Parts Repaired . | . . . Time . | . . . Parts Recycled . | . . . Recycled Matter . | . . . Retrieved Matter . | . . . Retrieved Components 9 | . 9 . Parts Scanalyzed . | . . . Part Schematics Acquired . | . . . Parts Damaged . | . . . Bothacking | -11 -10 -10 ------------ Run | Yrd Mat Min Used RIF Installer . | . . . Robots Hacked . | . . . Non-combat . | . . . Combat . | . . . Robot Hacks Applied . | . . . Relay Couplers Released . | . . . Fabnet Peak Effective % . | . . . Robots Rewired . | . . . Allies Hacked . | . . . Hacks Repelled . | . . . Allies | -11 -10 -10 -------- Run | Yrd Mat Min Total Allies . | . . . Largest Group . | . . . Highest-Rated Group . | . . . Highest-Rated Ally . | . . . Total Orders . | . . . Ally Attacks . | . . . Total Damage . | . . . Kills . | . . . Allies Corrupted . | . . . Allies Melted . | . . . Intel | -11 -10 -10 ------- Run | Yrd Mat Min Robot Analysis Total . | . . . Derelict Logs Recovered . | . . . Drone Launches . | . . . Drone Recoveries . | . . . Exploration | -11 -10 -10 ------------- Run | Yrd Mat Min Turns Passed 2000 | 99 1556 345 Spaces Moved 826 | 66 622 138 Core 54 | 8 . 46 Treads 191 | . 99 92 Legs 581 | 58 523 . Wheels . | . . . Hover . | . . . Flight . | . . . Fastest Speed 50 | 50 120 50 Average Speed 206 | 111 211 230 Slowest Speed 400 | 120 400 320 Overloaded Moves . | . . . Propulsion Burnouts . | . . . Robots Hopped . | . . . Cave-ins Triggered . | . . . Exploration Rate (%) 45 | 4 85 48 Regions Visited 2 Branch Regions 1 Pre-discovered Areas . | . . . Known Exits Taken 1 | . 1 . Unknown Exits Taken 1 | 1 . . Scrap Searched . | . . . Spaces Dug . | . . . Terrain Destroyed 97 | . . 97 Melee . | . . . Projectile 1 | . . 1 AOE 96 | . . 96 Terrain Rammed . | . . . Walls Destroyed . | . . . Machines Disabled . | . . . Actions | -11 -10 -10 --------- Run | Yrd Mat Min Total 1024 | 87 787 150 Wait 66 | . 64 2 Move 824 | 65 621 138 Hop . | . . . Pick Up 40 | 14 26 . Fast Attach 2 | . 2 . Attach 10 | 6 4 . Detach . | . . . Swap 7 | . 7 . Drop 19 | . 19 . Fire 56 | 2 44 10 Melee . | . . . Ram . | . . . Kick . | . . . Crush . | . . . Escape Stasis . | . . . Rewire . | . . . Trap . | . . . Miscellaneous . | . . . Route ------- -11/Scrapyard -10/Materials (discovered 4 exits: [*Mat x2] / *Min x2) -10/Mines History --------- Turn | Location | Event 4 | -11/Scrapyard | Discovered new exit (range 16) 100 | -11/Scrapyard | Entered Materials 324 | -10/Materials | Build established: Mutant 404 | -10/Materials | Discovered new exit (range 14) 707 | -10/Materials | Discovered new exit (range 15) 807 | -10/Materials | Discovered new exit (range 3) 1008 | -10/Materials | Identified exit to Mines 1218 | -10/Materials | Discovered new exit (range 9) 1656 | -10/Materials | Entered Mines 1939 | -10/Mines | Assembled infested the area 1970 | -10/Mines | Core integrity fell below 50% 1977 | -10/Mines | Released all parts (5) 1980 | -10/Mines | Core integrity fell below 20% 1996 | -10/Mines | Destroyed 12 combat bots 2001 | -10/Mines | Destroyed by D-53 Grenadier with Mini Grenade Launcher Last Messages --------------- 01966_ as-06140 destroyed. 01968_ Particle Cannon destroyed. 01969_ as-86433 destroyed. 01969_ as-52197 destroyed. 01970_ The unstable cave ceiling collapses. 01971_ as-92392 destroyed. 01972_ The unstable cave ceiling collapses. 01975_ C-30 ARC bursts open, deploying its payload. 01975_ D-53 Grenadier unfolds itself. 01975_ as-99191 destroyed. 01977_ The unstable cave ceiling collapses. 01977_ Lgt. Armor Plating destroyed. 01977_ Released Lgt. Treads. 01977_ Released Huge Storage Unit. 01977_ Released Ion Engine. 01977_ Released Lgt. Treads. 01977_ Released Mni. Grenade Launcher. 01982_ T-07 Excavator destroyed. 01982_ Acquired 11 matter. Map ----- +----------------------------------------------------+ | | | | | | | | | | | | | | | | | | | | | ???????????????????????????????????? | | ???????????????????????????????????? | | ???????????????????????????????????? | | ???????????????????????????????????? | | ???????????????????????????????????? | | ???????????????????????????????????? | | ???????????????????###?????????????? | | ?????????????????## ##????????????? | | ?????????????????# #????????????? | | ??????????#?????## #????????????? | | ?????????## ???## #????????????? | | ?????????# #### ##????????????? | | ??????????? # ##?????????????? | | ??????????### # ###??????????????? | | ???###???## ##??????? ?????? | | ???# ???# @ #??????? ?????? | | ???# ??# #??????? ?????? | | ???# ### ##???????? ?????# | | ??## #####????????? ?????# | | ?## ##????????????? ?????# | | ?# #?????????????? ?????? | | ?# #?????????????? ?????? | | ?# #??????????????# ?????? | | ?## d##?????????????# #?????? | | ??## ##????????????# ##????? | | ???##### #????????????# ##??## | | ???????## #????????????# #?## | | ????????# #????????????? ### | | ????????## ##?????????????# ### | | ???????### #??????????#### ### | | ???????# #######????# | | ???????## #?# ## | | ????????# ######## ### ##### | | ???????# #??## # #???##### | | ??????### #??# ##### #???????## | | ??????# #### #???# #????????# | | ??????## ## ##### ##???????# | | ??????# # ## #???????# | | ??????# "%" ##???????# | | ?????# " ##????????? | +----------------------------------------------------+ Best States ------------- Heat Dissipation 35 Energy Generation 10 Energy Capacity 250 Matter Stores 300 Matter Capacity 300 Sight Range 16 Terrain Scan Density 10 Armor Coverage 150 Resistance: KI 20 Resistance: TH 20 Resistance: EX 20 Resistance: EM 20 Resistance: I 20 Resistance: S 20 Resistance: P 20 Evasion (%) 50 Recoil Reduction 2 Offensive Hacking 10 Item Schematics ----------------- None Robot Schematics ------------------ None Fabricated ------------ Nothing Alien Tech Used ----------------- None Achievements -------------- None Challenges ------------ None Game ------ Seed DefenseSupersonicSystem Manual? 0 Play Time 00:23:09 Cumulative 23.7 hours Start 2024.05.22 @ 13:44:37 End 2024.05.22 @ 14:21:33 Sessions 1 Manual Loads 0 Difficulty Adventurer Special Mode None Game No. 13 Rogue 0 Adventurer 13 Explorer 0 Win Type - Total 0 Types 0/0/0/0/0/0/0/0/0 Lore% 14 Gallery% 20 Achievement% 17 Wizard Run 0 Options --------- Layout 1 ASCII 0 Keyboard 0 Movement Mouse Keybinds 0 Fullscreen 1 Font 24/Smallcaps Map View 50x35 Zoom Use 0% Tactical HUD 1 Map Filters NONE Filters NONE Steam 1 RUN: bfd9ee6c-3ce6-4d8d-be8a-48f20d5b96de